fUSD/lending_fUSD_20251029
["ID","MTS","AMOUNT","RATE_DAILY","PERIOD"]
[392595310,1761715854259,-500.0,0.00027397,2]
[392595311,1761715854269,-500.0,0.00027397,2]
[392595312,1761715854278,-500.0,0.00027397,2]
[392595313,1761715854287,-500.0,0.00027397,2]
[392595314,1761715854296,-500.0,0.00027397,2]
[392595315,1761715854305,-1226.1,0.00027397,2]
[392595316,1761715854315,-1031.79,0.00027397,2]
[392595317,1761715854325,-500.0,0.00027397,2]
[392595318,1761715854335,-500.0,0.00027397,2]
[392595319,1761715854345,-298.97540787,0.00027397,2]
[392595320,1761715854354,-500.0,0.00027397,2]
[392595321,1761715854364,-500.0,0.00027397,2]
[392595322,1761715854374,-500.0,0.00027397,2]
[392595323,1761715854384,-500.0,0.00027397,2]
[392595324,1761715854393,-500.0,0.00027397,2]
[392595325,1761715854403,-500.0,0.00027397,2]
[392595326,1761715854412,-727.86,0.00027397,2]
[392595327,1761715854421,-188.78969546,0.00027397,2]
[392595328,1761715854431,-500.0,0.00027397,2]
[392595329,1761715854440,-500.0,0.00027397,2]
[392595330,1761715854449,-500.0,0.00027397,2]
[392595331,1761715854458,-500.0,0.00027397,2]
[392595332,1761715854467,-520.6072005,0.00027397,2]
[392595333,1761715854477,-500.0,0.00027397,2]
[392595334,1761715854486,-623.39,0.00027397,2]
[392595335,1761715854495,-500.0,0.00027397,2]
[392595336,1761715854504,-500.0,0.00027397,2]
[392595337,1761715854513,-500.0,0.00027397,2]
[392595338,1761715854523,-1027.78,0.00027397,2]
[392595339,1761715854532,-500.0,0.00027397,2]
[392595340,1761715854541,-500.0,0.00027397,2]
[392595341,1761715854550,-500.0,0.00027397,2]
[392595342,1761715854559,-694.57,0.00027397,2]
[392595343,1761715854568,-500.0,0.00027397,2]
[392595344,1761715854578,-500.0,0.00027397,2]
[392595345,1761715854587,-513.90246233,0.00027397,2]
[392595346,1761715854597,-225.10505815,0.00027397,2]
[392595347,1761715854607,-500.0,0.00027397,2]
[392595348,1761715854617,-567.2,0.00027397,2]
[392595349,1761715854627,-500.0,0.00027397,2]
[392595350,1761715854636,-500.0,0.00027397,2]
[392595351,1761715854645,-500.0,0.00027397,2]
[392595352,1761715854655,-639.96,0.00027397,2]
[392595353,1761715854664,-595.31,0.00027397,2]
[392595354,1761715854673,-1636.42,0.00027397,2]
[392595355,1761715854683,-500.0,0.00027397,2]
[392595356,1761715854692,-500.0,0.00027397,2]
[392595357,1761715854701,-500.0,0.00027397,2]
[392595358,1761715854711,-500.0,0.00027397,2]
[392595359,1761715854721,-500.0,0.00027397,2]
[392595360,1761715854730,-500.0,0.00027397,2]
[392595361,1761715854739,-500.0,0.00027397,2]
[392595362,1761715854749,-739.98,0.00027397,2]
[392595363,1761715854758,-510.23824064,0.00027397,2]
[392595364,1761715854768,-500.0,0.00027397,2]
[392595365,1761715854777,-500.0,0.00027397,2]
[392595366,1761715854786,-500.0,0.00027397,2]
[392595367,1761715854795,-500.0,0.00027397,2]
[392595368,1761715854804,-514.03316295,0.00027397,2]
[392595369,1761715854814,-500.0,0.00027397,2]
[392595370,1761715854824,-500.0,0.00027397,2]
[392595371,1761715854833,-500.0,0.00027397,2]
[392595372,1761715854842,-500.0,0.00027397,2]
[392595373,1761715854851,-500.0,0.00027397,2]
[392595374,1761715854860,-500.0,0.00027397,2]
[392595375,1761715854869,-500.0,0.00027397,2]
[392595376,1761715854878,-500.0,0.00027397,2]
[392595377,1761715854886,-500.0,0.00027397,2]
[392595378,1761715854896,-500.0,0.00027397,2]
[392595379,1761715854905,-500.0,0.00027397,2]
[392595380,1761715854914,-500.0,0.00027397,2]
[392595381,1761715854923,-500.0,0.00027397,2]
[392595382,1761715854932,-2349.64,0.00027397,2]
[392595383,1761715854941,-500.0,0.00027397,2]
[392595384,1761715854950,-205.52250097,0.00027397,2]
[392595414,1761717032077,-152.0,0.00022914,3]
[392595415,1761717032088,-125.73504216,0.00023061,2]
[392595416,1761717032099,-24.26495784,0.00023061,2]
[392595417,1761717032108,-152.0,0.00023436,4]
[392595418,1761717032117,-116.73504216,0.00023958,5]
[392595419,1761717032191,-35.26495784,0.00023958,5]
[392595420,1761717032200,-230.6049674,0.00023999,2]
[392595421,1761717032248,-10.65633287,0.00023999,2]
[392595422,1761717032258,-152.0,0.00024479,6]
[392595423,1761717032267,-152.0,0.00025001,7]
[392595424,1761717032277,-477.01541854,0.00025476,2]
[392595425,1761717032286,-1400.0,0.00025479,2]
[392595426,1761717032295,-500.0,0.00025479,2]
[392595427,1761717032304,-152.0,0.00025523,8]
[392595428,1761717032313,-500.0,0.00025753,2]
[392595429,1761717032322,-250.0,0.00025779,2]
[392595430,1761717032331,-1200.0,0.00025784,2]
[392595431,1761717032340,-534.0,0.00025814,2]
[392595432,1761717032349,-162.52,0.00025815,2]
[392595433,1761717032358,-333.65,0.00025826,2]
[392595434,1761717032368,-233.99,0.00025852,2]
[392595435,1761717032377,-298.0,0.00026043,2]
[392595436,1761717032385,-152.0,0.00026044,9]
[392595437,1761717032394,-152.0,0.00026566,10]
[392595438,1761717032403,-255.96023177,0.00026575,2]
[392595439,1761717032415,-1051.79860255,0.00026575,2]
[392595449,1761717038036,-92.24116568,0.00026575,2]
[392595450,1761717038046,-196.26035432,0.00026575,2]
[392595451,1761717038092,-303.73964568,0.00026575,2]
[392595452,1761717038102,-504.5053274,0.00026591,5]
[392595453,1761717038113,-5946.39,0.00026591,2]
[392595454,1761717038123,-500.0,0.00026602,7]
[392595455,1761717038132,-500.0,0.00026617,7]
[392595456,1761717038142,-240.0,0.00026641,2]
[392595457,1761717038151,-500.0,0.00026641,7]
[392595458,1761717038160,-549.373,0.00026667,14]
[392595459,1761717038169,-200.0,0.000268,9]
[392595460,1761717038179,-500.0,0.00026851,7]
[392595461,1761717038188,-500.0,0.000269,9]
[392595462,1761717038198,-500.0,0.0002698,7]
[392595463,1761717038208,-500.0,0.00026999,2]
[392595464,1761717038217,-500.0,0.00026999,2]
[392595465,1761717038226,-492.06173002,0.00026999,2]
[392595466,1761717038235,-1503.65214623,0.00027,2]
[392595467,1761717038244,-500.0,0.00027035,7]
[392595468,1761717038253,-500.0,0.00027129,7]
[392595469,1761717038263,-500.0,0.00027152,7]
[392595470,1761717038273,-318.00074842,0.00027197,2]
[392595471,1761717038283,-154.79408405,0.00027205,2]
[392595472,1761717038292,-240.0,0.00027208,2]
[392595473,1761717038302,-500.0,0.00027258,7]
[392595474,1761717038311,-151.0,0.00027281,2]
[392595475,1761717038320,-151.0,0.00027281,2]
[392595476,1761717038329,-151.0,0.00027281,2]
[392595477,1761717038339,-151.0,0.00027281,2]
[392595478,1761717038348,-151.0,0.00027281,2]
[392595479,1761717038357,-151.0,0.00027281,2]
[392595480,1761717038367,-151.0,0.00027281,2]
[392595482,1761717038377,-151.0,0.00027281,2]
[392595485,1761717038387,-151.0,0.00027281,2]
[392595486,1761717038396,-250.0,0.00027281,2]
[392595488,1761717038405,-151.0,0.00027281,2]
[392595490,1761717038414,-156.9514079,0.00027281,2]
[392595494,1761717038437,-93.0485921,0.00027281,2]
[392595496,1761717038446,-151.0,0.00027281,2]
[392595498,1761717038455,-250.0,0.00027281,2]
[392595500,1761717038465,-151.0,0.00027281,2]
[392595502,1761717038473,-250.0,0.00027281,2]
[392595505,1761717038482,-151.0,0.00027281,2]
[392595508,1761717038492,-250.0,0.00027281,2]
[392595510,1761717038501,-151.0,0.00027281,2]
[392595512,1761717038511,-291.98475699,0.00027281,2]
[392595514,1761717038520,-500.0,0.00027281,2]
[392595516,1761717038529,-500.0,0.00027281,2]
[392595518,1761717038539,-500.0,0.00027281,2]
[392595520,1761717038548,-500.0,0.00027281,2]
[392595522,1761717038557,-150.0,0.00027281,2]
[392595524,1761717038567,-150.0,0.00027281,2]
[392595526,1761717038576,-150.60503565,0.00027281,2]
[392595528,1761717038585,-150.0,0.00027281,2]
[392595530,1761717038594,-150.0,0.00027281,2]
[392595532,1761717038603,-150.0,0.00027281,2]
[392595534,1761717038612,-155.0559749,0.00027281,2]
[392595536,1761717038622,-150.0,0.00027281,2]
[392595538,1761717038631,-150.0,0.00027281,2]
[392595540,1761717038641,-1000.0,0.00027287,2]
[392595542,1761717038651,-211.93452204,0.00027287,2]
[392595544,1761717038660,-1000.0,0.00027287,2]
[392595546,1761717038669,-7699.10649512,0.00027297,2]
[392595649,1761717040089,-566.8,0.00027297,2]
[392595652,1761717040147,-1628.21273904,0.00027297,2]
[392595653,1761717040313,-6592.54075946,0.00027297,2]
[392595654,1761717040325,-480.97264992,0.00027297,2]
[392595663,1761717046076,-509.1645241,0.00026446,3]
[392595667,1761717046359,-300.47184,0.00026446,3]
[392595668,1761717046416,-189.3636359,0.00026446,3]
[392595669,1761717046426,-16251.71335646,0.00027297,2]
[392595670,1761717046436,-73427.0978,0.00027297,2]
[392595671,1761717046445,-1000.0,0.00027297,2]
[392595672,1761717046454,-9978.19,0.00027297,2]
[392595673,1761717046464,-2996.1713,0.00027297,2]
[392595674,1761717046473,-597.43361926,0.00027297,2]
[392595675,1761717046482,-5000.0,0.00027297,2]
[392595676,1761717046491,-156.742236,0.00027297,2]
[392595677,1761717046501,-450.0,0.000273,3]
[392595678,1761717046510,-500.0,0.00027313,7]
[392595679,1761717046519,-105882.407881,0.00027377,2]
[392595680,1761717046528,-58823.5599337,0.00027377,2]
[392595681,1761717046539,-653.07242205,0.0002738,2]
[392595682,1761717046548,-500.0,0.00027386,2]
[392595683,1761717046557,-582.98,0.00027386,2]
[392595684,1761717046566,-582.98,0.00027386,2]
[392595685,1761717046575,-129411.831854,0.00027387,2]
[392595686,1761717046586,-151.294324,0.00027387,7]
[392595687,1761717046595,-307.84530948,0.00027387,2]
[392595688,1761717046605,-896.10463045,0.00027391,2]
[392595689,1761717046614,-500.0,0.00027396,2]
[392595690,1761717046624,-500.0,0.00027396,2]
[392595691,1761717046633,-500.0,0.00027396,2]
[392595693,1761717046643,-582.98,0.00027396,2]
[392595695,1761717046652,-582.98,0.00027396,2]
[392595697,1761717046661,-582.98,0.00027396,2]
[392595698,1761717046670,-582.98,0.00027396,2]
[392595699,1761717046679,-782.0,0.00027397,2]
[392595700,1761717046688,-10975.8882601,0.00027397,2]
[392595701,1761717046697,-2003.042244,0.00027397,2]
[392595702,1761717046706,-378.841574,0.00027397,2]
[392595703,1761717046714,-500.0,0.00027397,2]
[392595704,1761717046723,-219.043119,0.00027397,2]
[392595705,1761717046733,-7630.647051,0.00027397,2]
[392595706,1761717046742,-182.535933,0.00027397,2]
[392595707,1761717046750,-211.796856,0.00027397,2]
[392595708,1761717046760,-1615.744019,0.00027397,2]
[392595709,1761717046769,-500.0,0.00027397,2]
[392595710,1761717046778,-3238.224402,0.00027397,2]
[392595711,1761717046788,-500.0,0.00027397,2]
[392595712,1761717046797,-500.0,0.00027397,2]
[392595713,1761717046805,-500.0,0.00027397,2]
[392595715,1761717046815,-500.0,0.00027397,2]
[392595716,1761717046825,-200.0,0.00027397,2]
[392595717,1761717046833,-500.0,0.00027397,2]
[392595718,1761717046842,-500.0,0.00027397,2]
[392595719,1761717046851,-500.0,0.00027397,2]
[392595720,1761717046861,-500.0,0.00027397,2]
[392595721,1761717046871,-500.0,0.00027397,2]
[392595722,1761717046881,-500.0,0.00027397,2]
[392595723,1761717046890,-500.0,0.00027397,2]
[392595725,1761717046903,-500.0,0.00027397,2]
[392595726,1761717047118,-500.0,0.00027397,2]
[392595727,1761717047129,-593.68151264,0.00027397,2]
[392595728,1761717047138,-500.0,0.00027397,2]
[392595729,1761717047147,-500.0,0.00027397,2]
[392595730,1761717047156,-500.0,0.00027397,2]
[392595731,1761717047165,-500.0,0.00027397,2]
[392595732,1761717047174,-500.0,0.00027397,2]
[392595733,1761717047184,-500.0,0.00027397,2]
[392595734,1761717047193,-500.0,0.00027397,2]
[392595735,1761717047202,-500.0,0.00027397,2]
[392595736,1761717047211,-500.0,0.00027397,2]
[392595737,1761717047220,-500.0,0.00027397,2]
[392595738,1761717047231,-402.32141094,0.00027397,2]
[392595739,1761717047242,-500.0,0.00027397,2]
[392595740,1761717047252,-500.0,0.00027397,2]
[392595741,1761717047261,-523.76559809,0.00027397,2]
[392595742,1761717047270,-514.04023126,0.00027397,2]
[392595743,1761717047279,-514.49467656,0.00027397,2]
[392595744,1761717047288,-500.0,0.00027397,2]
[392595745,1761717047297,-500.0,0.00027397,2]
[392595746,1761717047306,-500.0,0.00027397,2]
[392595747,1761717047316,-500.0,0.00027397,2]
[392595748,1761717047325,-500.0,0.00027397,2]
[392595749,1761717047335,-500.0,0.00027397,2]
[392595750,1761717047345,-500.0,0.00027397,2]
[392595751,1761717047355,-907.17,0.00027397,2]
[392595752,1761717047364,-500.0,0.00027397,2]
[392595753,1761717047374,-500.0,0.00027397,2]
[392595754,1761717047382,-500.0,0.00027397,2]
[392595755,1761717047392,-505.8,0.00027397,2]
[392595756,1761717047400,-500.0,0.00027397,2]
[392595757,1761717047410,-500.0,0.00027397,2]
[392595758,1761717047419,-515.39245169,0.00027397,2]
[392595759,1761717047428,-520.11018596,0.00027397,2]
[392595760,1761717047438,-500.0,0.00027397,2]
[392595761,1761717047447,-500.0,0.00027397,2]
[392595762,1761717047456,-500.0,0.00027397,2]
[392595763,1761717047465,-500.0,0.00027397,2]
[392595764,1761717047474,-500.0,0.00027397,2]
[392595765,1761717047483,-500.0,0.00027397,2]
[392595766,1761717047492,-533.51424098,0.00027397,2]
[392595767,1761717047501,-500.0,0.00027397,2]
[392595768,1761717047510,-500.0,0.00027397,2]
[392595769,1761717047519,-498.60075038,0.00027397,2]
[392595770,1761717047528,-500.0,0.00027397,2]
[392595771,1761717047537,-500.0,0.00027397,2]
[392595772,1761717047546,-500.0,0.00027397,2]
[392595773,1761717047555,-480.16901507,0.00027397,2]
[392595774,1761717047564,-285.32453236,0.00027397,2]
[392595775,1761717047573,-500.0,0.00027397,2]
[392595776,1761717047582,-500.0,0.00027397,2]
[392595777,1761717047591,-500.0,0.00027397,2]
[392595778,1761717047600,-592.62142032,0.00027397,2]
[392595779,1761717047610,-500.0,0.00027397,2]
[392595780,1761717047619,-500.0,0.00027397,2]
[392595781,1761717047629,-500.0,0.00027397,2]
[392595782,1761717047639,-528.79881591,0.00027397,2]
[392595783,1761717047648,-500.0,0.00027397,2]
[392595784,1761717047657,-403.22851049,0.00027397,2]
[392595785,1761717047667,-632.78547066,0.00027397,2]
[392595786,1761717047676,-500.0,0.00027397,2]
[392595787,1761717047685,-188.07711558,0.00027397,2]
[392595788,1761717047695,-168.957661,0.00027397,2]
[392595789,1761717047704,-500.0,0.00027397,2]
[392595790,1761717047714,-500.0,0.00027397,2]
[392595791,1761717047723,-500.0,0.00027397,2]
[392595792,1761717047733,-500.0,0.00027397,2]
[392595793,1761717047743,-500.0,0.00027397,2]
[392595794,1761717047752,-515.39369443,0.00027397,2]
[392595795,1761717047762,-500.0,0.00027397,2]
[392595796,1761717047771,-500.0,0.00027397,2]
[392595797,1761717047780,-500.0,0.00027397,2]
[392595798,1761717047789,-500.0,0.00027397,2]
[392595799,1761717047798,-218.66,0.00027397,2]
[392595800,1761717047807,-500.0,0.00027397,2]
[392595801,1761717047816,-500.0,0.00027397,2]
[392595802,1761717047825,-500.0,0.00027397,2]
[392595803,1761717047834,-500.0,0.00027397,2]
[392595804,1761717047843,-500.0,0.00027397,2]
[392595805,1761717047852,-500.0,0.00027397,2]
[392595806,1761717047861,-500.0,0.00027397,2]
[392595807,1761717047870,-500.0,0.00027397,2]
[392595808,1761717047879,-500.0,0.00027397,2]
[392595809,1761717047888,-500.0,0.00027397,2]
[392595810,1761717047898,-516.19790574,0.00027397,2]
[392595811,1761717047907,-500.0,0.00027397,2]
[392595812,1761717047917,-500.0,0.00027397,2]
[392595813,1761717047927,-500.0,0.00027397,2]
[392595814,1761717047937,-500.0,0.00027397,2]
[392595815,1761717047947,-500.0,0.00027397,2]
[392595816,1761717047957,-500.0,0.00027397,2]
[392595817,1761717047966,-500.0,0.00027397,2]
[392595818,1761717047976,-500.0,0.00027397,2]
[392595819,1761717047985,-500.0,0.00027397,2]
[392595820,1761717047995,-500.0,0.00027397,2]
[392595821,1761717048004,-500.0,0.00027397,2]
[392595822,1761717048014,-500.0,0.00027397,2]
[392595823,1761717048023,-599.09,0.00027397,2]
[392595824,1761717048033,-500.0,0.00027397,2]
[392595825,1761717048044,-500.0,0.00027397,2]
[392595826,1761717048054,-500.0,0.00027397,2]
[392595827,1761717048063,-500.0,0.00027397,2]
[392595828,1761717048072,-500.0,0.00027397,2]
[392595829,1761717048082,-500.0,0.00027397,2]
[392595830,1761717048091,-500.0,0.00027397,2]
[392595831,1761717048101,-500.0,0.00027397,2]
[392595832,1761717048110,-532.54598864,0.00027397,2]
[392595833,1761717048120,-500.0,0.00027397,2]
[392595834,1761717048130,-567.67,0.00027397,2]
[392595835,1761717048139,-500.0,0.00027397,2]
[392595836,1761717048148,-500.0,0.00027397,2]
[392595837,1761717048158,-500.0,0.00027397,2]
[392595838,1761717048167,-500.0,0.00027397,2]
[392595839,1761717048176,-500.0,0.00027397,2]
[392595840,1761717048186,-621.34,0.00027397,2]
[392595841,1761717048195,-500.0,0.00027397,2]
[392595842,1761717048204,-656.97,0.00027397,2]
[392595843,1761717048213,-500.0,0.00027397,2]
[392595844,1761717048222,-666.8,0.00027397,2]
[392595845,1761717048231,-684.47,0.00027397,2]
[392595846,1761717048240,-676.18,0.00027397,2]
[392595847,1761717048249,-654.56,0.00027397,2]
[392595848,1761717048258,-500.0,0.00027397,2]
[392595849,1761717048267,-500.0,0.00027397,2]
[392595850,1761717048276,-485.66475146,0.00027397,2]
[392595851,1761717048285,-753.71,0.00027397,2]
[392595852,1761717048295,-500.0,0.00027397,2]
[392595853,1761717048303,-500.0,0.00027397,2]
[392595854,1761717048312,-446.98939744,0.00027397,2]
[392595855,1761717048322,-500.0,0.00027397,2]
[392595856,1761717048331,-689.42,0.00027397,2]
[392595857,1761717048340,-988.8,0.00027397,2]
[392595858,1761717048350,-500.0,0.00027397,2]
[392595859,1761717048359,-188.06274821,0.00027397,2]
[392595860,1761717048368,-500.0,0.00027397,2]
[392595861,1761717048377,-500.0,0.00027397,2]
[392595862,1761717048386,-1137.42,0.00027397,2]
[392595863,1761717048396,-500.0,0.00027397,2]
[392595864,1761717048404,-697.53,0.00027397,2]
[392595865,1761717048413,-500.0,0.00027397,2]
[392595866,1761717048423,-597.42,0.00027397,2]
[392595867,1761717048432,-500.0,0.00027397,2]
[392595868,1761717048441,-500.0,0.00027397,2]
[392595869,1761717048450,-500.0,0.00027397,2]
[392595870,1761717048459,-984.96,0.00027397,2]
[392595871,1761717048468,-500.0,0.00027397,2]
[392595872,1761717048477,-500.0,0.00027397,2]
[392595873,1761717048486,-500.0,0.00027397,2]
[392595874,1761717048495,-349.50928608,0.00027397,2]
[392595875,1761717048505,-500.0,0.00027397,2]
[392595876,1761717048514,-500.0,0.00027397,2]
[392595877,1761717048523,-500.0,0.00027397,2]
[392595878,1761717048532,-500.0,0.00027397,2]
[392595879,1761717048541,-500.0,0.00027397,2]
[392595880,1761717048551,-500.0,0.00027397,2]
[392595881,1761717048560,-500.0,0.00027397,2]
[392595882,1761717048569,-500.0,0.00027397,2]
[392595883,1761717048578,-500.0,0.00027397,2]
[392595884,1761717048586,-500.0,0.00027397,2]
[392595885,1761717048595,-543.57,0.00027397,2]
[392595886,1761717048604,-510.60070393,0.00027397,2]
[392595887,1761717048613,-500.0,0.00027397,2]
[392595888,1761717048621,-500.0,0.00027397,2]
[392595889,1761717048631,-1568.24,0.00027397,2]
[392595890,1761717048639,-500.0,0.00027397,2]
[392595891,1761717048649,-500.0,0.00027397,2]
[392595892,1761717048658,-500.0,0.00027397,2]
[392595893,1761717048667,-709.15,0.00027397,2]
[392595894,1761717048676,-500.0,0.00027397,2]
[392595895,1761717048684,-506.63,0.00027397,2]
[392595896,1761717048693,-500.0,0.00027397,2]
[392595897,1761717048703,-500.0,0.00027397,2]
[392595898,1761717048712,-500.0,0.00027397,2]
[392595899,1761717048721,-500.0,0.00027397,2]
[392595900,1761717048730,-529.7255532,0.00027397,2]
[392595901,1761717048740,-500.0,0.00027397,2]
[392595902,1761717048750,-500.0,0.00027397,2]
[392595903,1761717048760,-662.76,0.00027397,2]
[392595904,1761717048769,-500.0,0.00027397,2]
[392595905,1761717048779,-500.0,0.00027397,2]
[392595906,1761717048787,-500.0,0.00027397,2]
[392595907,1761717048797,-466.32175635,0.00027397,2]
[392595908,1761717048807,-500.0,0.00027397,2]
[392595909,1761717048815,-500.0,0.00027397,2]
[392595910,1761717048825,-500.0,0.00027397,2]
[392595911,1761717048834,-500.0,0.00027397,2]
[392595912,1761717048843,-500.0,0.00027397,2]
[392595913,1761717048852,-500.0,0.00027397,2]
[392595914,1761717048861,-566.29120012,0.00027397,2]
[392595915,1761717048870,-500.0,0.00027397,2]
[392595916,1761717048880,-500.0,0.00027397,2]
[392595917,1761717048889,-644.57,0.00027397,2]
[392595918,1761717048902,-500.0,0.00027397,2]
[392595919,1761717048912,-500.0,0.00027397,2]
[392595920,1761717048921,-500.0,0.00027397,2]
[392595921,1761717048931,-500.0,0.00027397,2]
[392595922,1761717048940,-500.0,0.00027397,2]
[392595923,1761717048950,-500.0,0.00027397,2]
[392595924,1761717048959,-500.0,0.00027397,2]
[392595925,1761717048968,-500.0,0.00027397,2]
[392595926,1761717048978,-500.0,0.00027397,2]
[392595927,1761717048987,-500.0,0.00027397,2]
[392595928,1761717048997,-500.0,0.00027397,2]
[392595929,1761717049006,-2517.23,0.00027397,2]
[392595930,1761717049017,-500.0,0.00027397,2]
[392595931,1761717049026,-500.0,0.00027397,2]
[392595932,1761717049162,-500.0,0.00027397,2]
[392595933,1761717049172,-500.0,0.00027397,2]
[392595934,1761717049181,-500.0,0.00027397,2]
[392595935,1761717049190,-500.0,0.00027397,2]
[392595936,1761717049200,-500.0,0.00027397,2]
[392595937,1761717049209,-500.0,0.00027397,2]
[392595938,1761717049219,-500.0,0.00027397,2]
[392595939,1761717049228,-500.0,0.00027397,2]
[392595940,1761717049237,-500.0,0.00027397,2]
[392595941,1761717049247,-533.94,0.00027397,2]
[392595942,1761717049256,-500.0,0.00027397,2]
[392595943,1761717049266,-500.0,0.00027397,2]
[392595944,1761717049275,-500.0,0.00027397,2]
[392595945,1761717049284,-500.0,0.00027397,2]
[392595946,1761717049293,-500.0,0.00027397,2]
[392595947,1761717049302,-648.62,0.00027397,2]
[392595948,1761717049311,-500.0,0.00027397,2]
[392595949,1761717049320,-500.0,0.00027397,2]
[392595950,1761717049330,-630.81,0.00027397,2]
[392595951,1761717049339,-500.0,0.00027397,2]
[392595952,1761717049348,-500.0,0.00027397,2]
[392595953,1761717049357,-500.0,0.00027397,2]
[392595954,1761717049366,-500.0,0.00027397,2]
[392595955,1761717049375,-556.49,0.00027397,2]
[392595956,1761717049385,-500.0,0.00027397,2]
[392595957,1761717049394,-868.27,0.00027397,2]
[392595958,1761717049403,-262.69675599,0.00027397,2]
[392595959,1761717049412,-516.01980198,0.00027397,2]
[392595960,1761717049422,-755.31,0.00027397,2]
[392595961,1761717049431,-500.0,0.00027397,2]
[392595962,1761717049443,-500.0,0.00027397,2]
[392595963,1761717049453,-510.86409267,0.00027397,2]
[392595964,1761717049463,-500.0,0.00027397,2]
[392595965,1761717049472,-500.0,0.00027397,2]
[392595966,1761717049481,-716.44,0.00027397,2]
[392595967,1761717049490,-500.0,0.00027397,2]
[392595968,1761717049499,-500.0,0.00027397,2]
[392595969,1761717049509,-500.0,0.00027397,2]
[392595970,1761717049518,-500.0,0.00027397,2]
[392595971,1761717049527,-500.0,0.00027397,2]
[392595972,1761717049537,-164.20747924,0.00027397,2]
[392595973,1761717049546,-655.53,0.00027397,2]
[392595974,1761717049555,-500.0,0.00027397,2]
[392595975,1761717049565,-500.0,0.00027397,2]
[392595976,1761717049574,-500.0,0.00027397,2]
[392595977,1761717049583,-500.0,0.00027397,2]
[392595978,1761717049592,-500.0,0.00027397,2]
[392595979,1761717049601,-500.0,0.00027397,2]
[392595980,1761717049611,-500.0,0.00027397,2]
[392595981,1761717049619,-500.0,0.00027397,2]
[392595982,1761717049629,-421.6091039,0.00027397,2]
[392595983,1761717049638,-500.0,0.00027397,2]
[392595984,1761717049648,-500.0,0.00027397,2]
[392595985,1761717049659,-500.0,0.00027397,2]
[392595986,1761717049668,-500.0,0.00027397,2]
[392595987,1761717049677,-271.76447524,0.00027397,2]
[392595988,1761717049686,-576.67,0.00027397,2]
[392595989,1761717049695,-438.10951517,0.00027397,2]
[392595990,1761717049704,-500.0,0.00027397,2]
[392595991,1761717049714,-500.01808862,0.00027397,2]
[392595992,1761717049723,-500.0,0.00027397,2]
[392595993,1761717049731,-736.98,0.00027397,2]
[392595994,1761717049741,-500.0,0.00027397,2]
[392595995,1761717049752,-500.0,0.00027397,2]
[392595996,1761717049762,-500.0,0.00027397,2]
[392595997,1761717049771,-500.0,0.00027397,2]
[392595998,1761717049780,-500.0,0.00027397,2]
[392595999,1761717049789,-500.0,0.00027397,2]
[392596000,1761717049798,-500.0,0.00027397,2]
[392596001,1761717049807,-500.0,0.00027397,2]
[392596002,1761717049815,-500.0,0.00027397,2]